Cogmind - Beta 17 @@@ ROGUE MODE // 2026.06.24 @ 22:40:12 Player: THN-L0C Result: Self-destructed Performance ------------- Evolutions (0) 0 Regions Visited (4) 800 Robots Destroyed (29) 145 Value Destroyed (429) 429 Prototype IDs (10) 200 Alien Tech Used (0) 0 Bonus (5131) 5131 TOTAL SCORE: 6705 Bonus ------- Follower Combat Kills 39 Prayed to X0-1V1 5000 Major X0-1V1 Interference 250 Registered with UFD 300 Friendly Fire -458 Cogmind --------- Core Integrity 13/170 Matter 39/300 Energy 275/275 System Corruption 0% Temperature Cool (0) Movement Treading (160) Location -8/Scraptown Parts ------- > --- POWER (1) -------- Deuterium Engine > --- PROPULSION (2) --- Improved Treads Improved Treads > --- UTILITY (2) ------ Scrapoid Pod > --- WEAPON (2) ------- Salvaging Laser Minigun > --- INVENTORY (5) ---- Deuterium Engine High-powered Shotgun Vortex Trap Peak State ------------ > --- POWER ------------ Deuterium Engine > --- PROPULSION ------- Improved Treads Improved Treads > --- UTILITY ---------- High-capacity Storage Unit X0-1V1's Piety Tracker > --- WEAPON ----------- Salvaging Laser Minigun > --- INVENTORY -------- Deuterium Engine Overtuned Treads Armored Wheel High-capacity Matter Pod Advanced Signal Interpreter Matter Filter Improved Reaction Control System Improved Utility Shielding Light Armor Plating Hardened Light Armor Plating Improved Medium Armor Plating Scrapoid Pod Heavy Plasma Cannon High-powered Shotgun Overtuned Barrage Gun Overtuned Barrage Gun Mini Grenade Launcher Heavy Hammer [Rating: 31] Favorites ----------- Power Deuterium Engine Engine Deuterium Engine Power Core Light Nuclear Core Propulsion Aluminum Leg Treads Improved Treads Leg Aluminum Leg Wheel Compact Wheel Utility X0-1V1's Piety Tracker Device X0-1V1's Piety Tracker Storage High-capacity Storage Unit Weapon Shotgun Energy Gun Salvaging Laser Ballistic Gun Shotgun Build | -11 -10 -10 -10 -8 ------- Run | Yrd Mat Min Sub Scr Slots Evolved . | . . . . . Power . | . . . . . Propulsion . | . . . . . Utility . | . . . . . Weapon . | . . . . . Parts Attached 26 | 6 13 1 . 6 Power 5 | 1 2 1 . 1 Engine 4 | 1 2 . . 1 Core 1 | . . 1 . . Reactor . | . . . . . Propulsion 7 | 2 3 . . 2 Treads 2 | . . . . 2 Leg 2 | . 2 . . . Wheel 3 | 2 1 . . . Hover . | . . . . . Flight . | . . . . . Utility 6 | 2 3 . . 1 Device 4 | 1 2 . . 1 Storage 2 | 1 1 . . . Processor . | . . . . . Hackware . | . . . . . Protection . | . . . . . Artifact . | . . . . . Weapon 8 | 1 5 . . 2 Energy Gun 3 | 1 1 . . 1 Energy Cannon . | . . . . . Ballistic Gun 5 | . 4 . . 1 Ballistic Cannon . | . . . . . Launcher . | . . . . . Special Weapon . | . . . . . Impact Weapon . | . . . . . Slashing Weapon . | . . . . . Piercing Weapon . | . . . . . Special Melee Weapon . | . . . . . Unidentified Prototypes 1 | . 1 . . . Parts Lost 2 | . 2 . . . Power . | . . . . . Propulsion 1 | . 1 . . . Utility 1 | . 1 . . . Weapon . | . . . . . Highest Loss Streak 1 | . 1 . . . To Critical Strikes . | . . . . . Average Backups 15 | 4 10 20 20 16 Power 1 | . 1 2 2 1 Propulsion . | 1 1 . . . Utility 5 | . 5 7 7 6 Weapon 7 | 2 3 10 11 8 Tool/Special . | . . . . . Unused Backups 39 | . 1 2 . 36 Power 6 | . 1 . . 5 Propulsion 2 | . . . . 2 Utility 14 | . . 2 . 12 Weapon 17 | . . . . 17 Tool/Special . | . . . . . Average Slot Usage (%) 97 | . 95 100 100 97 Engine 12 | . 14 7 . 13 Core 1 | . . 6 14 . Treads 6 | . . . . 8 Leg 11 | . 19 14 14 8 Wheel 10 | . 8 14 14 10 Device 13 | . 13 14 14 14 Storage 12 | . 14 14 14 12 Energy Gun 5 | . 9 . . 5 Ballistic Gun 21 | . 14 28 28 22 Peak Build Rating 31 | 6 25 26 26 31 Average Rating 24 | 3 19 25 26 26 On Entrance 16 | . 6 25 26 26 Avg Prop Armor Cover (%) 9 | . 8 8 8 9 Naked Turns . | . . . . . Heaviest Build 56 | 10 54 54 52 56 Greatest Support 46 | 20 20 16 16 46 Greatest Overweight (x) 3 | . 3 3 3 3 Average Overweight (x) 2 | . . 3 3 2 Largest Inventory Capacity 20 | 8 20 20 20 20 Average Capacity 16 | 7 12 20 20 17 Most Carried 20 | 7 20 20 20 20 Average Carried 16 | 4 10 19 20 17 Final Capacity 20 | 8 20 20 20 5 Final Carried 20 | 6 20 20 20 3 Class Distribution -------------------- 71% | Mutant 28% | Derelict-Mutant Dominant Class ---------------- Mutant | -10/Materials Mutant | -10/Mines Mutant | -10/Subcaves Mutant | -8/Scraptown Resources | -11 -10 -10 -10 -8 ----------- Run | Yrd Mat Min Sub Scr Matter Collected 1534 | 260 286 275 . 713 Remotely . | . . . . . Salvage Created 668 | 103 342 223 . . Parts 59 | 4 26 29 . . Haulers Intercepted . | . . . . . Recyclers Shooed . | . . . . . Parts Field Recycled . | . . . . . Retrieved Matter . | . . . . . Parts Self-Destructed 5 | . . . 5 . Prevented . | . . . . . Parts Restored . | . . . . . Kills | -11 -10 -10 -10 -8 ------- Run | Yrd Mat Min Sub Scr Combat Hostiles Destroyed 21 | . 10 11 . . Guns 20 | . 9 11 . . Classes Destroyed 7 | 2 4 1 . . Worker 1 | . . 1 . . Builder 1 | . 1 . . . Tunneler 2 | 1 1 . . . Recycler 1 | 1 . . . . Watcher 1 | . 1 . . . Swarmer 15 | . 6 9 . . Grunt 8 | . 6 2 . . Best Kill Streak 7 | 2 3 7 . . Combat Bots Only 6 | . 3 6 . . Max Kills in Single Turn 2 | 1 2 2 . . Gunslinging . | . . . . . Exploded . | . . . . . Melee . | . . . . . Uniques/NPCs Destroyed . | . . . . . Combat | -11 -10 -10 -10 -8 -------- Run | Yrd Mat Min Sub Scr Hostile Shots Fired 100 | . 69 31 . . Missed 19 | . 13 6 . . Hits 81 | . 56 25 . . Projectile 81 | . 56 25 . . Damage Taken 853 | . 606 247 . . Core 224 | . 175 49 . . Absorbed by Shields . | . . . . . Core Remaining (%) 100 | 100 . . . . Volleys Fired 84 | 8 61 15 . . Largest 2 | 1 2 2 . . Hottest 70 | 40 70 46 . . Shots Fired 110 | 8 72 30 . . Gun 110 | 8 72 30 . . Cannon . | . . . . . Launcher . | . . . . . Special . | . . . . . Kinetic 44 | . 14 30 . . Thermal 66 | 8 58 . . . Explosive . | . . . . . Electromagnetic . | . . . . . Robot Hit Streak 11 | 6 8 11 . . Robot Miss Streak 5 | 1 4 5 . . Penetration Max . | . . . . . Secondary Targets 3 | . 1 2 . . Max Gunslinging Chain 1 | . 1 1 . . Shots Hit Robots 67 | 7 40 20 . . Core Hits 36 | 3 18 15 . . Critical Kills . | . . . . . Critical Parts Destroyed . | . . . . . Critical Strikes 2 | . 2 . . . Burn 2 | . 2 . . . Melee Attacks . | . . . . . Impact . | . . . . . Slashing . | . . . . . Piercing . | . . . . . Sneak Attacks . | . . . . . Combat Hostiles . | . . . . . Follow-up Attacks . | . . . . . Damage Inflicted 1169 | 79 780 310 . . Guns 922 | 79 533 310 . . Cannons . | . . . . . Explosions 247 | . 247 . . . Melee . | . . . . . Ramming . | . . . . . Kinetic 419 | . 109 310 . . Thermal 750 | 79 671 . . . Explosive . | . . . . . Electromagnetic . | . . . . . Impact . | . . . . . Slashing . | . . . . . Piercing . | . . . . . Highest Corruption 15 | . 15 15 15 . Average Corruption 15 | . 15 15 15 . Corruption Purged . | . . . . . Corruption Blocked . | . . . . . Effects 34 | . 20 12 2 . Message Errors 9 | . 5 3 1 . Matter Fused 8 | . 3 4 1 . Heat Flow Errors 3 | . 3 . . . Energy Discharges 2 | . . 2 . . Parts Rejected 2 | . 2 . . . Data Loss (minor) 6 | . 3 3 . . Data Loss (major) 2 | . 2 . . . Misfires 1 | . 1 . . . Misdirections 1 | . 1 . . . Overload Shots . | . . . . . Overflow Damage 16 | . 16 . . . Projectiles . | . . . . . Explosions 16 | . 16 . . . Melee . | . . . . . Knockbacks . | . . . . . Impact . | . . . . . Kinetic . | . . . . . Secondary . | . . . . . Self-Inflicted Damage 48 | . 48 . . . Shots 1 | . 1 . . . Rammed . | . . . . . Targets Rammed . | . . . . . Kicked . | . . . . . Crushed . | . . . . . Highest Temperature 275 | . 275 6 . . Average Temperature 85 | . 87 3 . . Received Heat Transfer 246 | . 198 48 . . Siege Activations . | . . . . . Martial Activations . | . . . . . Shielding Activations . | . . . . . Robots Disrupted . | . . . . . Combat Hostiles . | . . . . . Robots Corrupted . | . . . . . Combat Hostiles . | . . . . . Parts Fried . | . . . . . Impact Corruptions . | . . . . . Robots Melted 1 | . 1 . . . Combat Hostiles 1 | . 1 . . . Parts Melted 2 | . 2 . . . Heat Transferred 1613 | 175 1438 . . . Parts Sabotaged . | . . . . . Parts Stolen . | . . . . . Parts Stripped . | . . . . . Power Chain Reactions . | . . . . . Alert | -11 -10 -10 -10 -8 ------- Run | Yrd Mat Min Sub Scr Maximum Alert Level . | . . . . . Low Security (%) 100 | 100 100 100 . . Level 1 . | . . . . . Level 2 . | . . . . . Level 3 . | . . . . . Level 4 . | . . . . . Level 5 . | . . . . . High Security . | . . . . . Max Security . | . . . . . Peak Influence 195 | 5 195 145 . . Initial . | . . . . . Average 63 | 1 62 85 . . Influence Increases 726 | 10 461 255 . . Destroy 0b10 Robot/C 480 | . 260 220 . . Destroy 0b10 Robot/NC 35 | 10 20 5 . . Destroy Leader 82 | . 52 30 . . Allied During Kill 11 | . 11 . . . Successful Hack 16 | . 16 . . . Disable Machine 30 | . 30 . . . Destroy Structure 27 | . 27 . . . Lose Combat Pursuer 45 | . 45 . . . Influence Decreases 726 | 10 461 130 125 . Entered New Map 65 | . . . 65 . Time Decay 481 | 10 281 130 60 . Lost Part 10 | . 10 . . . Lost Ally 20 | . 20 . . . Purge Threat 150 | . 150 . . . Squads Dispatched 2 | . 2 . . . Investigation 1 | . 1 . . . Extermination . | . . . . . Reinforcement 1 | . 1 . . . Assault . | . . . . . Garrison . | . . . . . Intercept . | . . . . . Searches Triggered . | . . . . . Construction Impeded . | . . . . . Haulers Reinforced . | . . . . . Active Scanning Responses . | . . . . . Cargo Convoy Interrupts . | . . . . . Stealth | -11 -10 -10 -10 -8 --------- Run | Yrd Mat Min Sub Scr Distress Signals . | . . . . . Communications Jammed . | . . . . . Distress Signals . | . . . . . Times Spotted 30 | . 19 11 . . Peak Tracking Total 3 | . 3 3 . . Tactical Retreats 2 | . 2 . . . Traps | -11 -10 -10 -10 -8 ------- Run | Yrd Mat Min Sub Scr Traps Triggered . | . . . . . Indirectly . | . . . . . Trap Hack Attempts . | . . . . . Triggered . | . . . . . Disarmed . | . . . . . Reprogrammed . | . . . . . Reused . | . . . . . Traps Extracted . | . . . . . Installed . | . . . . . Triggered . | . . . . . Most Traps Carried 2 | . . . . 2 Machines | -11 -10 -10 -10 -8 ---------- Run | Yrd Mat Min Sub Scr Machines Disabled 2 | . 2 . . . Max in Single Turn 2 | . 2 . . . Machines Repaired . | . . . . . Machines Dismantled . | . . . . . Machines Sabotaged . | . . . . . Overloaded Fab Kills . | . . . . . Hacking | -11 -10 -10 -10 -8 --------- Run | Yrd Mat Min Sub Scr Machines Accessed 10 | . 5 1 . 4 Terminals 6 | . 5 1 . . Fabricators . | . . . . . Repair Stations . | . . . . . Recycling Units . | . . . . . Scanalyzers . | . . . . . Garrison Access . | . . . . . Total Hacks 23 | . 12 2 . 9 Successful 15 | . 6 . . 9 Failed 8 | . 6 2 . . Catastrophic 3 | . 1 2 . . Database Lockouts . | . . . . . Manual 21 | . 19 2 . . Terminals 14 | . 12 2 . . Fabricators . | . . . . . Repair Stations . | . . . . . Recycling Units . | . . . . . Scanalyzers . | . . . . . Garrison Access . | . . . . . Terminal Hacks 12 | . 3 . . 9 Record 8 | . . . . 8 Branch Access Points 1 | . 1 . . . Terminal Index 1 | . 1 . . . Unreport Threat 1 | . 1 . . . Proto ID Catalog 1 | . . . . 1 Fabricator Hacks . | . . . . . Repair Station Hacks . | . . . . . Recycling Unit Hacks . | . . . . . Scanalyzer . | . . . . . Garrison Access Hacks . | . . . . . Unauthorized Hacks 3 | . 3 . . . Terminals 3 | . 3 . . . Botnet 3 | . 3 . . . Fabricators . | . . . . . Repair Stations . | . . . . . Recycling Units . | . . . . . Scanalyzers . | . . . . . Garrison Access . | . . . . . Data Cores Recovered . | . . . . . Used . | . . . . . Hacking Detections 6 | . 5 1 . . Full Trace Events 1 | . 1 . . . Feedback Events . | . . . . . Feedback Blocked . | . . . . . Robot Schematics Acquired . | . . . . . Robots Built . | . . . . . Authchips . | . . . . . Time . | . . . . . Total Robot Build Rating . | . . . . . Part Schematics Acquired . | . . . . . Parts Built . | . . . . . Authchips . | . . . . . Time . | . . . . . Total Part Build Rating . | . . . . . Part Studies Acquired . | . . . . . Parts Repaired . | . . . . . Time . | . . . . . Parts Recycled . | . . . . . Recycled Matter . | . . . . . Retrieved Matter . | . . . . . Retrieved Components . | . . . . . Parts Scanalyzed . | . . . . . Part Schematics Acquired . | . . . . . Parts Damaged . | . . . . . Bothacking | -11 -10 -10 -10 -8 ------------ Run | Yrd Mat Min Sub Scr Used RIF Installer . | . . . . . Robots Hacked . | . . . . . Non-combat . | . . . . . Combat . | . . . . . Robot Hacks Applied . | . . . . . Relay Couplers Released . | . . . . . Fabnet Peak Effective % . | . . . . . Robots Rewired . | . . . . . Allies Hacked . | . . . . . Hacks Repelled . | . . . . . Allies | -11 -10 -10 -10 -8 -------- Run | Yrd Mat Min Sub Scr Total Allies 4 | . 4 . . . Largest Group 4 | . 4 . . . Highest-Rated Group 32 | . 32 . . . Highest-Rated Ally 8 | . 8 . . . Total Orders . | . . . . . Ally Attacks 27 | . 27 . . . Total Damage 173 | . 173 . . . Kills 5 | . 5 . . . Allies Corrupted . | . . . . . Allies Melted . | . . . . . X0-1V1 Amusement Gains 22 | . 22 . . . Good Acts 9 | . 7 1 1 . Bad Acts 3 | . 2 1 . . Intel | -11 -10 -10 -10 -8 ------- Run | Yrd Mat Min Sub Scr Active Infowar (turns) 76 | 5 71 . . . Seismic 76 | 5 71 . . . Robot Analysis Total . | . . . . . Derelict Logs Recovered 1 | . . . 1 . Drone Launches . | . . . . . Drone Recoveries . | . . . . . Exploration | -11 -10 -10 -10 -8 ------------- Run | Yrd Mat Min Sub Scr Turns Passed 4998 | 85 921 331 165 3496 Spaces Moved 3168 | 64 531 189 113 2271 Core 2 | 2 . . . . Treads 427 | . . . . 427 Legs 281 | . 281 . . . Wheels 2458 | 62 250 189 113 1844 Hover . | . . . . . Flight . | . . . . . Fastest Speed 50 | 50 80 145 145 130 Average Speed 146 | 79 131 145 145 151 Slowest Speed 260 | 80 260 145 145 240 Overloaded Moves . | . . . . . Propulsion Burnouts . | . . . . . Robots Hopped . | . . . . . Potential Cave-ins . | . . . . . Cave-ins Triggered . | . . . . . Exploration Rate (%) 41 | 3 67 41 8 90 Regions Visited 4 Branch Regions 3 Pre-discovered Areas . | . . . . . Known Exits Taken 1 | . 1 . . . Unknown Exits Taken 3 | 1 . 1 1 . Scrap Searched 9 | . . 1 . 8 Spaces Dug . | . . . . . Terrain Destroyed 44 | . 44 . . . Melee . | . . . . . Projectile . | . . . . . AOE 44 | . 44 . . . Terrain Rammed . | . . . . . Walls Destroyed . | . . . . . Machines Disabled . | . . . . . Actions | -11 -10 -10 -10 -8 --------- Run | Yrd Mat Min Sub Scr Total 3428 | 88 679 217 114 2330 Wait 60 | 3 44 9 2 2 Move 3164 | 63 530 188 112 2271 Hop . | . . . . . Pick Up 52 | 8 21 2 . 21 Fast Attach 9 | 4 3 . . 2 Attach 7 | 2 3 . . 2 Detach 1 | . . . . 1 Swap 14 | . 9 1 . 4 Drop 37 | . 8 2 . 27 Fire 84 | 8 61 15 . . Melee . | . . . . . Ram . | . . . . . Kick . | . . . . . Crush . | . . . . . Escape Stasis . | . . . . . Rewire . | . . . . . Trap . | . . . . . Miscellaneous . | . . . . . Route ------- -11/Scrapyard -10/Materials (discovered 4 exits: [*Mat x2] / *Min / [*Sub]) -10/Mines (discovered 2 exits: [*Mat] / [*Sub]) -10/Subcaves (discovered 2 exits: [*Mat] / *Scr) -8/Scraptown (discovered 1 exit: [*Fac]) History --------- Turn | Location | Event 39 | -11/Scrapyard | Discovered new exit (range 16) 86 | -11/Scrapyard | Entered Materials 156 | -10/Materials | Prayed at D.C.S.S. Altar Unit 159 | -10/Materials | Discovered new exit (range 4) 322 | -10/Materials | Build established: Mutant 347 | -10/Materials | Melee accuracy permanently improved by X0-1V1 (+8%; -80 max core) 437 | -10/Materials | X0-1V1 sent allied G-34 Mercenary (x4) 457 | -10/Materials | Discovered new exit (range 12) 560 | -10/Materials | Discovered new exit (range 16) 581 | -10/Materials | System corruption reached 10% 853 | -10/Materials | Core integrity fell below 50% 879 | -10/Materials | Identified exit to Mines 892 | -10/Materials | Discovered new exit (range 14) 1007 | -10/Materials | Entered Mines 1064 | -10/Mines | X0-1V1 sent hostile S-10 Pest (x3) 1092 | -10/Mines | Core integrity fell below 20% 1314 | -10/Mines | Discovered new exit (range 7) 1329 | -10/Mines | Discovered new exit (range 8) 1338 | -10/Mines | Entered Subcaves 1339 | -10/Subcaves | Approached by a straggling Scientist 1380 | -10/Subcaves | Discovered new exit (range 7) 1439 | -10/Subcaves | Learned Materials trap positions 1501 | -10/Subcaves | Scientist uncovered a shortcut to Scraptown 1503 | -10/Subcaves | Entered Scraptown 1581 | -8/Scraptown | Heard Great Nut preacher, LISTEN AND RECITE! 1971 | -8/Scraptown | Discovered new exit (range 13) 2086 | -8/Scraptown | Visited Comm Corps 2165 | -8/Scraptown | Visited Spacefarers 2251 | -8/Scraptown | Visited Shadow of the Wyrm 2390 | -8/Scraptown | Visited TADAMA 2441 | -8/Scraptown | Visited Symbiants 2476 | -8/Scraptown | Visited IN-MT5's Study 2499 | -8/Scraptown | Visited Fellowship of the Rings 2722 | -8/Scraptown | Visited UFD Registry 2725 | -8/Scraptown | Registered with UFD as "Hammerhead" 2757 | -8/Scraptown | Visited Scrapoid Pod Storage 2805 | -8/Scraptown | Visited Science Guys 2875 | -8/Scraptown | Visited Research Penetration Think Tank 2908 | -8/Scraptown | Visited Curators Association 3154 | -8/Scraptown | Visited Scrap Suit Storage 3217 | -8/Scraptown | Visited DA-N13 Charitable Foundation 3223 | -8/Scraptown | Found DCF Scrap (28 items) 3272 | -8/Scraptown | Visited Chapter 10 3337 | -8/Scraptown | Visited Modified Component R&D 3878 | -8/Scraptown | Build established: Derelict-Mutant 4152 | -8/Scraptown | Found Scrapoid Pod 4999 | -8/Scraptown | Self-destructed Last Messages --------------- 04527_ Extracted 5 matter. 04553_ X0-UX9(c): "Come one, come all! See for yourself a fine selection of the many wondrous pieces in our collection!" 04591_ Extracted 80 matter. 04615_ X0-UX9(c): "Come one, come all! See for yourself a fine selection of the many wondrous pieces in our collection!" X0-1V1's Piety Tracker suddenly appears amidst shimmering waves of color. 04678_ Acquired 94 matter. 04686_ Acquired 20 matter. X0-1V1's Piety Tracker suddenly appears amidst shimmering waves of color. U9-X8K(E): We are 0bPrime. We are one. X0-1V1's Piety Tracker suddenly appears amidst shimmering waves of color. 04955_ Searching scrap... 04955_ Found Reaction Control System. 04955_ Found Beam Rifle. 04955_ Found Flamer. 04955_ Found 40 Matter. 04956_ Acquired 40 matter. 04988_ X0-UX9(c): "Come one, come all! See for yourself a fine selection of the many wondrous pieces in our collection!" Map ----- +----------------------------------------------------+ | ?????????###"" "## "#???????????????????? | | ??######## #"" "## ""#???????????????????? | | ""#???????????????????? | | "## ""#???????????????????? | | ?######### #"" "## """"""#???????????????????? | | ?????????###"" "##"""""""#???????????????????? | | ???????????#"" "############?????????????????? | | ???????????#"" "##"###"###"#?????????????????? | | ???????????#"" "## "[" "=" #?????????????????? | | ############"" "## """ """ ###???????????????? | | """""""""""""" "## "#???????????????? | | """""""""""""" ""##???????????????? | | "## "&#????????????????? | | "## ""##???????????????? | | "## "#???????????????? | | ## """ """ ###???????????????? | | # "&" "*" #?????????????????? | | """""""""" """""" ##"###"###"#?????????????????? | | ########## ###### ####?###??##?????????????????? | | "???# "# #????????????????????????????? | | ?#" # #????????????????????????????? | | """##&"! "" ""# #????????????????????????????? | | "## " "" ""# #????????????????????????????? | | """## = ""# !#????????????????????????????? | | """##"" """"# ############?????????????????? | | ??#"""" """# j @ != #?????????????????? | | ""??#""!" "# [!= ##?????????????????? | | ##??#"""" """# !!!]! #?????????????????? | | ????#""" X """""# ]!&!/ #?????????????????? | | ????#"""""""""""# [ #?????????????????? | | ????############# ############?????????????????? | | ################# #####????????????????????????? | | "##"""##"""##"|"# """"#????????????????????????? | | "##"""##""|##" # "" "#????????????????????????? | | "#????????????????????????? | | " "#????????????????????????? | | !|[ """"#????????????????????????? | | |##" "##!! ##""|## ######????????????????????????? | | "##"""##"""##"""####?????????????????????????????? | | #################????????????????????????????????? | | ?????????????????????????????????????????????????? | | ?????????????????????????????????????????????????? | | ?????????????????????????????????????????????????? | | ?????????????????????????????????????????????????? | | ?????????????????????????????????????????????????? | | ?????????????????????????????????????????????????? | | ?????????????????????????????????????????????????? | | ?????????????????????????????????????????????????? | | ?????????????????????????????????????????????????? | | ?????????????????????????????????????????????????? | +----------------------------------------------------+ Best States ------------- Heat Dissipation 25 Energy Generation 30 Energy Capacity 275 Matter Stores 533 Matter Capacity 700 Sight Range 16 Terrain Scan Density 10 Evasion (%) 55 Recoil Reduction 2 Item Schematics ----------------- None Robot Schematics ------------------ None Fabricated ------------ Nothing Repaired ---------- Nothing Studied --------- None Alien Tech Used ----------------- None Achievements -------------- Chaos Is Inevitable Civilization 2243 Nice Directions, Buddy Challenges ------------ None Game ------ Seed HackingSkeletonProcessor Manual? 0 Play Time 00:45:40 Cumulative 381.7 hours Start 2026.06.24 @ 21:48:37 End 2026.06.24 @ 22:40:12 Sessions 1 Manual Loads 0 Difficulty Rogue Special Mode None Game No. 283 Rogue 283 Adventurer 0 Explorer 0 Win Type - Total 7 Types 3/0/3/1/0/0/0/0/0/0 Lore% 75 Gallery% 71 Achievement% 36 Wizard Run 0 Options --------- Layout 2 ASCII 0 Keyboard 1 Movement Vi Keybinds 0 Fullscreen 2 Font 32/SmallcapsGlow Map View 77x44 Zoom Use 0% Tactical HUD 1 Map Filters NONE Filters NONE Steam 1 RUN: e04c88eb-0aec-4708-857e-18fc0a54cc31